bitfinex/quotes_SOLUSD_20260309
["timestamp","ask_amount","ask_price","bid_price","bid_amount"]
[1773095817814,4.82477569,86.045,85.976,1.54730312]
[1773095818119,11.1636251,86.01,85.97,11.1636251]
[1773095818294,3.69383402,86.026,85.96,11.1636251]
[1773095818295,11.1636251,86.0,85.96,11.1636251]
[1773095818496,11.1636251,86.02,85.971,1.54730312]
[1773095818711,11.62398726,86.029,85.96,40.71661237]
[1773095818712,11.1636251,86.01,85.96,22.79694292]
[1773095818903,3.69383402,86.026,85.96,22.79694292]
[1773095818904,0.14216157,85.999,85.96,22.79694292]
[1773095819112,1.60624073,85.997,85.961,1.54730312]
[1773095819306,0.14216157,85.996,85.97,11.1636251]
[1773095819503,1.46936195,86.007,85.971,1.54730312]
[1773095819706,0.28432314,86.006,85.98,11.1636251]
[1773095819906,2.42158811,86.007,85.98,11.1636251]
[1773095820102,11.62709578,86.006,85.972,11.63169403]
[1773095820306,1.47456362,86.004,85.972,11.63169403]
[1773095820504,1.47456362,86.002,85.972,11.63169403]
[1773095820828,1.47456362,85.989,85.95,11.1636251]
[1773095821029,1.75888676,85.979,85.941,1.54730312]
[1773095821206,0.14216157,85.977,85.941,1.54730312]
[1773095821406,0.95222616,85.976,85.941,1.54730312]
[1773095821602,0.95222616,85.996,85.961,1.54730312]
[1773095821814,2.71626418,85.996,85.961,1.54730312]
[1773095822013,13.39264497,85.995,85.922,88.83577404]
[1773095822227,1.47971488,85.969,85.936,1.54730312]
[1773095824424,11.1636251,85.95,85.917,1.54742136]
[1773095825618,11.1636251,85.94,85.917,1.54742136]
[1773095826397,11.1636251,85.94,85.919,1.54742136]
[1773095826815,11.1636251,85.95,85.919,1.54742136]
[1773095828625,11.1636251,85.96,85.92,11.6387337]
[1773095828915,11.1636251,85.96,85.921,1.68388119]
[1773095830224,22.79704374,85.96,85.923,1.68388119]
[1773095830615,11.1636251,85.95,85.915,1.68388119]
[1773095830923,11.1636251,85.94,85.911,11.63995297]
[1773095831120,11.1636251,85.94,85.911,40.7398354]
[1773095831320,11.1636251,85.95,85.912,1.68388119]
[1773095831624,40.71671319,85.96,85.921,1.68388119]
[1773095831625,22.82485902,85.96,85.921,1.68388119]
[1773095832027,0.02781528,85.959,85.921,1.68388119]
[1773095833021,0.02781528,85.959,85.922,11.63846279]
[1773095833242,0.02781528,85.959,85.922,10.10473536]
[1773095833409,1.51608906,85.949,85.912,11.63981748]
[1773095834127,1.51608906,85.939,85.902,11.64117249]
[1773095834311,11.1636251,85.93,85.902,11.64117249]
[1773095834506,1.51608906,85.929,85.902,11.64117249]
[1773095835216,1.51608906,85.929,85.892,1.54742136]
[1773095835438,11.1636251,85.93,85.892,1.54742136]
[1773095835439,1.51608906,85.927,85.892,1.54742136]
[1773095835812,1.51608906,85.909,85.875,1.54742136]
[1773095836928,11.64035945,85.908,85.879,11.64422571]
[1773095837123,22.80398455,85.908,85.879,11.64422571]
[1773095837324,11.1636251,85.9,85.879,11.64422571]
[1773095837632,1.51608906,85.907,85.879,11.64422571]
[1773095838321,1.51608906,85.905,85.879,11.64422571]
[1773095838506,1.51608906,85.905,85.876,11.644697]
[1773095839615,12.67971416,85.904,85.876,11.644697]
[1773095839832,1.51608906,85.903,85.876,11.644697]
[1773095840224,11.1636251,85.904,85.877,1.54742136]
[1773095840424,12.67971416,85.904,85.878,11.64442581]
[1773095840625,1.51608906,85.902,85.873,11.64502074]
[1773095841734,1.51608906,85.899,85.873,11.64502074]
[1773095842424,11.64171459,85.898,85.87,0.1]
[1773095842618,1.51608906,85.897,85.87,0.1]
[1773095843332,1.51608906,85.897,85.87,11.2636251]
[1773095843535,1.51608906,85.897,85.871,1.54742136]
[1773095844128,0.28432314,85.918,85.87,11.2636251]
[1773095844129,1.51608906,85.889,85.87,0.1]
[1773095844336,1.51608906,85.889,85.86,11.64681358]
[1773095844531,1.51608906,85.887,85.856,11.64740961]
[1773095844831,1.51608906,85.887,85.852,11.64789179]
[1773095845031,1.51608906,85.887,85.86,11.1636251]
[1773095845227,1.51608906,85.885,85.86,11.1636251]
[1773095845534,1.51608906,85.885,85.861,1.54742136]
[1773095846136,11.1636251,85.886,85.861,1.54742136]
[1773095846520,11.1636251,85.92,85.881,1.54742136]
[1773095846729,1.8004122,85.919,85.881,1.54742136]
[1773095847035,1.51608906,85.919,85.881,1.54742136]
[1773095847633,1.51608906,85.919,85.89,11.1636251]
[1773095848430,1.51608906,85.919,85.891,1.54742136]
[1773095848633,11.63900463,85.918,85.892,11.64252782]
[1773095848922,11.63900463,85.918,85.892,13.18994918]
[1773095849232,1.51608906,85.919,85.893,1.54742136]
[1773095849437,11.63900463,85.918,85.893,1.54742136]
[1773095850333,1.51608906,85.917,85.887,11.64309858]
[1773095850538,1.51608906,85.917,85.882,11.64382342]
[1773095850920,1.51608906,85.909,85.882,11.64382342]
[1773095851452,1.51608906,85.909,85.882,13.19124478]
[1773095851849,42.25355355,85.916,85.883,1.54742136]
[1773095852340,1.51608906,85.912,85.881,1.54742136]
[1773095853940,0.28432314,85.91,85.882,13.401081]
[1773095854435,1.76553425,85.909,85.877,11.64451561]
[1773095854740,11.44794824,85.91,85.873,11.64507432]
[1773095854741,1.76553425,85.899,85.873,11.64507432]
[1773095854938,1.76553425,85.899,85.869,11.64556665]
[1773095855822,1.76553425,85.908,85.881,1.75719754]
[1773095857731,11.64049495,85.907,85.881,13.40115016]
[1773095858134,13.4060292,85.907,85.881,13.40115016]
[1773095858328,11.64049495,85.907,85.882,1.75719754]
[1773095858841,11.63977447,85.913,85.882,1.75719754]
[1773095859343,11.63977447,85.913,85.891,1.75719754]
[1773095859542,30.86164632,85.923,85.891,1.75719754]
[1773095859734,11.92278593,85.922,85.901,1.75719754]
[1773095859932,11.63802558,85.926,85.901,1.75719754]
[1773095860144,58.17026754,85.955,85.892,40.74884738]
[1773095860145,11.63656674,85.936,85.911,1.75719754]
[1773095860833,11.63605956,85.94,85.921,1.75719754]
[1773095861041,11.63605956,85.94,85.892,40.74884738]
[1773095861042,1.76553425,85.939,85.903,1.75719754]
[1773095861342,1.76553425,85.939,85.9,11.16000046]
[1773095861532,1.76553425,85.929,85.893,1.75719754]
[1773095862156,11.63765012,85.928,85.901,1.75719754]
[1773095862332,1.76553425,85.927,85.901,1.75719754]
[1773095862836,1.76553425,85.927,85.894,11.64225673]
[1773095864137,1.76553425,85.925,85.894,11.64225673]
[1773095865656,1.76553425,85.925,85.89,11.16000046]
[1773095865859,40.7327235,85.926,85.901,1.75719754]
[1773095866149,1.68928503,85.925,85.901,1.75719754]
[1773095866334,1.68928503,85.925,85.893,1.64099402]
[1773095866538,3.69383402,85.927,85.843,1.64099402]
[1773095866539,3.69383402,85.897,85.843,1.64099402]
[1773095866736,1.68928503,85.869,85.835,1.64099402]
[1773095866931,1.68928503,85.869,85.842,11.64925909]
[1773095867543,1.68928503,85.869,85.838,11.64982951]
[1773095867747,0.14216157,85.888,85.83,40.38710968]
[1773095867748,0.14216157,85.888,85.842,1.64099402]
[1773095868063,11.16000046,85.87,85.842,1.64099402]
[1773095868236,11.64564627,85.869,85.842,1.64099402]
[1773095869161,40.75976195,85.869,85.842,1.64099402]
[1773095871449,1.3798614,85.859,85.83,0.1]
[1773095871651,1.3798614,85.859,85.764,59.6206415]
[1773095871652,11.16000046,85.84,85.812,11.6533321]
[1773095872049,1.3798614,85.841,85.813,1.64099402]
[1773095872264,12.54608626,85.86,85.821,1.64099402]
[1773095872970,0.28432314,85.868,85.821,1.64099402]
[1773095872971,11.16000046,85.85,85.821,1.64099402]
[1773095873265,10.18285152,85.849,85.823,1.64099402]
[1773095873648,1.39220763,85.848,85.813,1.64099402]
[1773095874262,10.18285152,85.849,85.821,1.64099402]
[1773095874871,11.64849501,85.848,85.822,13.29301797]
[1773095875075,11.64849501,85.848,85.822,1.64099402]
[1773095875362,1.40423966,85.847,85.813,1.64099402]
[1773095875942,1.40423966,85.847,85.813,13.29418772]
[1773095876138,11.64849501,85.848,85.814,1.64099402]
[1773095877075,11.64849501,85.848,85.823,1.64099402]
[1773095877665,11.16000046,85.83,85.791,1.84652549]
[1773095877876,11.16000046,85.82,85.79,0.1]
[1773095878852,11.16000046,85.81,85.79,0.1]
[1773095879042,11.65378922,85.809,85.79,0.1]
[1773095879243,11.16000046,85.82,85.791,1.84652549]
[1773095879453,11.16000046,85.83,85.791,1.84652549]
[1773095879651,7.1490553,85.836,85.801,1.84652549]
[1773095880146,10.18285152,85.829,85.801,1.84652549]
[1773095880463,5.81867273,85.829,85.821,1.84652549]
[1773095880666,2.11872243,85.829,85.821,1.84652549]
[1773095880882,1.37873237,85.829,85.821,1.84652549]
[1773095881041,7.1490553,85.836,85.82,11.16000046]
[1773095881352,7.1490553,85.836,85.83,11.16000046]
[1773095882741,11.16000046,85.87,85.83,11.16000046]
[1773095882742,9.03044564,85.858,85.83,11.16000046]
[1773095882967,20.67762663,85.858,85.84,11.16000046]
[1773095883176,18.80877761,85.858,85.84,11.16000046]
[1773095883664,7.16157425,85.858,85.841,11.6494449]
[1773095883870,18.80883472,85.858,85.84,11.16000046]
[1773095884057,7.16157425,85.858,85.84,22.80954108]
[1773095884670,7.1258736,85.858,85.85,11.16000046]
[1773095884861,1.86887139,85.878,85.85,11.16000046]
[1773095885166,1.88672172,85.876,85.85,11.16000046]
[1773095886060,9.04505048,85.889,85.87,11.16000046]
[1773095886266,9.04505048,85.889,85.88,11.16000046]
[1773095886470,7.15832876,85.889,85.88,11.16000046]
[1773095887287,11.63886916,85.919,85.881,11.64401904]
[1773095887460,1.88672172,85.918,85.89,11.16000046]
[1773095887666,1.88672172,85.918,85.86,11.16000046]
[1773095887667,1.88672172,85.918,85.88,11.16000046]
[1773095887976,1.88672172,85.918,85.89,11.16000046]
[1773095888161,1.88672172,85.918,85.9,11.16000046]
[1773095888355,1.88672172,85.918,85.89,11.16000046]
[1773095888873,7.15194647,85.936,85.9,11.16000046]
[1773095888874,11.63832764,85.923,85.9,11.16000046]
[1773095889069,1.88672172,85.922,85.9,11.16000046]
[1773095889373,1.88672172,85.922,85.888,0.04578048]
[1773095889374,1.88672172,85.92,85.89,11.16000046]
[1773095889687,1.88672172,85.92,85.891,11.64266337]
[1773095890178,1.88672172,85.92,85.89,11.16000046]
[1773095890863,1.88672172,85.92,85.9,11.16000046]
[1773095892778,1.88672172,85.918,85.88,0.05689196]
[1773095893083,1.88672172,85.909,85.87,11.16000046]
[1773095893488,1.88672172,85.909,85.867,0.08837675]
[1773095893489,1.88672172,85.909,85.88,11.16000046]
[1773095896278,1.88672172,85.907,85.88,11.16000046]
[1773095897468,1.88672172,85.905,85.88,11.16000046]
[1773095898465,1.88672172,85.905,85.87,11.16000046]
[1773095899390,1.88672172,85.899,85.86,11.16000046]
[1773095901499,1.88672172,85.897,85.87,11.16000046]
[1773095902901,1.88672172,85.895,85.87,11.16000046]
[1773095904493,1.88672172,85.895,85.86,11.16000046]
[1773095905301,1.88672172,85.893,85.87,11.16000046]
[1773095906802,11.64225673,85.894,85.88,11.16000046]
[1773095906998,11.64225673,85.894,85.871,0.21227434]
[1773095907182,11.64225673,85.894,85.88,11.16000046]
[1773095908599,1.88672172,85.898,85.871,0.21227434]
[1773095909187,1.88672172,85.898,85.872,11.64523942]
[1773095910303,11.64157906,85.899,85.88,11.40412518]
[1773095910491,1.88672172,85.898,85.88,11.16000046]
[1773095910898,1.88672172,85.898,85.86,11.16000046]
[1773095911605,1.88672172,85.898,85.86,11.41186957]
[1773095912112,1.88672172,85.898,85.861,0.25186911]
[1773095912408,1.88672172,85.898,85.87,11.16000046]
[1773095912601,1.84721595,85.879,85.815,104.2]
[1773095912803,1.84721595,85.879,85.74,0.1]
[1773095912804,3.69383402,85.857,85.765,1.82601162]
[1773095913000,11.16000046,85.86,85.771,1.82601162]
[1773095913001,11.16000046,85.81,85.771,1.82601162]
[1773095913196,11.16000046,85.81,85.765,11.65967456]
[1773095913197,3.69383402,85.829,85.78,11.16000046]
[1773095913395,0.28432314,85.819,85.781,1.97158292]
[1773095913601,0.28432314,85.809,85.781,1.97158292]
[1773095913802,11.16000046,85.8,85.773,1.97158292]
[1773095914500,0.28432314,85.809,85.773,1.97158292]
[1773095914693,40.78873764,85.808,85.773,1.97158292]
[1773095914901,1.92863096,85.807,85.773,1.97158292]
[1773095915301,11.16000046,85.8,85.773,1.97158292]
[1773095916517,11.16000046,85.8,85.773,1.91158292]
[1773095916706,11.65514749,85.799,85.773,1.91158292]
[1773095917020,11.65514749,85.799,85.77,11.16000046]
[1773095917223,11.65378922,85.809,85.79,11.16000046]
[1773095917602,11.59378922,85.809,85.79,11.16000046]
[1773095918115,11.65378922,85.809,85.79,11.16000046]
[1773095918616,11.65378922,85.809,85.791,1.97158292]
[1773095919306,11.65378922,85.809,85.783,1.97158292]
[1773095920094,11.65378922,85.809,85.79,11.18452163]
[1773095920301,11.65378922,85.809,85.791,1.97158292]
[1773095922120,1.84721594,85.808,85.791,1.97158292]
[1773095923236,11.65406085,85.807,85.791,1.97158292]
[1773095924617,40.78731164,85.811,85.791,1.97158292]
[1773095925124,40.78731164,85.811,85.78,11.18452163]
[1773095925616,1.84721594,85.81,85.78,11.18452163]
[1773095926019,1.92863096,85.809,85.78,11.18452163]
[1773095926542,1.92863096,85.809,85.77,11.18452163]
[1773095926723,11.65392504,85.808,85.79,11.18452163]
[1773095926902,11.65392504,85.808,85.78,11.18452163]
[1773095927102,13.582556,85.808,85.78,13.15610455]
[1773095927302,13.582556,85.808,85.781,1.97158292]
[1773095927503,1.92863096,85.807,85.781,1.97158292]
[1773095928214,1.84721594,85.806,85.781,1.97158292]
[1773095929629,11.65433249,85.805,85.781,1.97158292]
[1773095930015,1.91965607,85.789,85.741,2.02043477]
[1773095930224,1.91965607,85.787,85.761,2.02043477]
[1773095930411,1.91965607,85.787,85.742,2.02043477]
[1773095931208,1.91965607,85.787,85.751,2.02043477]
[1773095931407,1.91965607,85.787,85.761,2.02043477]
[1773095931912,1.91965607,85.785,85.749,2.02043477]
[1773095932112,1.91965607,85.785,85.75,13.2049564]
[1773095932423,1.91965607,85.785,85.751,2.02043477]
[1773095932924,1.91965607,85.779,85.751,2.02043477]
[1773095933307,1.84721594,85.784,85.751,2.02043477]
[1773095933829,3.76687201,85.784,85.751,2.02043477]
[1773095934071,3.76687201,85.784,85.74,0.1]
[1773095934072,1.91965607,85.782,85.74,0.1]
[1773095934210,1.91965607,85.782,85.75,11.18452163]
[1773095934617,11.18452163,85.78,85.74,0.1]
[1773095934935,1.91965607,85.766,85.74,0.1]
[1773095935147,1.91965607,85.766,85.74,11.28452163]
[1773095935325,40.80062483,85.783,85.75,11.18452163]
[1773095935728,11.65732138,85.783,85.76,13.2049564]
[1773095936039,11.65732138,85.783,85.77,11.18452163]
[1773095936211,3.69383402,85.8,85.77,11.18452163]
[1773095936623,40.79111452,85.803,85.77,13.2049564]
[1773095936826,40.79111452,85.803,85.77,11.18452163]
[1773095936827,0.28432314,85.802,85.77,11.18452163]
[1773095937232,1.84721594,85.782,85.77,11.18452163]
[1773095938039,1.84721594,85.782,85.771,2.02043477]
[1773095938337,1.91965607,85.802,85.764,0.61865094]
[1773095938550,11.65460415,85.803,85.74,0.1]
[1773095938551,1.91965607,85.789,85.74,11.28452163]
[1773095938833,1.91965607,85.779,85.74,11.28452163]
[1773095940530,1.91965607,85.777,85.75,11.18452163]
[1773095940733,1.91965607,85.777,85.74,11.28452163]
[1773095941212,1.91965607,85.777,85.74,11.92928843]
[1773095941417,1.91965607,85.777,85.74,11.28452163]
[1773095941634,1.91965607,85.769,85.74,0.1]
[1773095942536,1.91965607,85.767,85.74,0.1]
[1773095943522,1.91965607,85.767,85.74,11.28452163]
[1773095944024,1.91965607,85.767,85.74,0.1]
[1773095944718,2.08447721,85.765,85.74,11.28452163]
[1773095945741,2.08447721,85.765,85.74,0.1]
[1773095947536,2.08447721,85.763,85.74,0.1]
[1773095948344,2.08447721,85.763,85.73,4.18059628]
[1773095948919,2.08447721,85.763,85.731,0.85510133]
[1773095949116,2.08447721,85.763,85.74,4.18059628]
[1773095949338,11.65990392,85.764,85.74,5.04733123]
[1773095949547,11.65990392,85.764,85.72,4.28059628]
[1773095949548,11.65827271,85.776,85.752,11.66153559]
[1773095949755,11.65827271,85.776,85.76,4.18059628]
[1773095949922,2.08447721,85.775,85.74,4.18059628]
[1773095951548,2.08447721,85.773,85.75,4.18059628]
[1773095951724,40.8049059,85.774,85.75,4.18059628]
[1773095952128,2.08447721,85.773,85.748,0.8896435]
[1773095952342,2.08447721,85.773,85.75,4.18059628]
[1773095952639,2.08447721,85.773,85.74,4.18059628]
[1773095952839,2.08447721,85.773,85.741,0.9000068]
[1773095953540,2.08447721,85.773,85.705,58.33938197]
[1773095953541,2.08447721,85.745,85.692,11.66964126]
[1773095953723,2.08447721,85.737,85.69,4.18059628]
[1773095953924,2.08447721,85.737,85.7,4.18059628]
[1773095955544,2.08447721,85.735,85.7,11.2066975]
[1773095956238,2.08447721,85.729,85.69,11.2066975]
[1773095956440,2.08447721,85.727,85.69,11.2066975]
[1773095958041,2.08447721,85.725,85.69,11.2066975]
[1773095959743,40.82870607,85.724,85.69,11.2066975]
[1773095959937,2.08447721,85.723,85.69,11.2066975]
[1773095960344,2.08447721,85.723,85.68,0.1]
[1773095960345,2.08447721,85.719,85.68,11.3066975]
[1773095960750,2.08447721,85.719,85.68,12.28544535]
[1773095961045,2.08447721,85.709,85.68,0.1]
[1773095961233,2.08447721,85.707,85.68,0.1]
[1773095961555,2.08447721,85.707,85.68,11.3066975]
[1773095962132,11.66720418,85.711,85.69,11.2066975]
[1773095962446,11.66720418,85.711,85.69,12.19476364]
[1773095962647,11.66615067,85.719,85.691,0.99728945]
[1773095963150,2.08447721,85.75,85.711,0.99728945]
[1773095963331,2.08447721,85.75,85.72,11.2066975]
[1773095963832,2.08447721,85.748,85.72,11.2066975]
[1773095964234,2.08447721,85.729,85.69,11.2066975]
[1773095964448,2.08447721,85.727,85.69,11.2066975]
[1773095964648,2.08447721,85.727,85.69,12.22216702]
[1773095965152,2.08447721,85.727,85.701,1.01546952]
[1773095965348,2.08447721,85.727,85.7,11.2066975]
[1773095965651,2.08447721,85.727,85.69,11.2066975]
[1773095966033,2.08447721,85.727,85.69,12.231061]
[1773095966236,2.08447721,85.727,85.691,1.0243635]
[1773095966557,2.08447721,85.725,85.692,11.66970078]
[1773095966941,2.08447721,85.725,85.693,1.0331757]
[1773095967442,2.08447721,85.725,85.7,11.2066975]
[1773095968846,11.66534459,85.724,85.71,11.2066975]
[1773095971049,11.66425605,85.732,85.71,11.2066975]
[1773095971579,13.74873326,85.732,85.71,11.2066975]
[1773095972241,11.2066975,85.75,85.71,11.2066975]
[1773095972242,2.36880035,85.752,85.711,1.08400057]
[1773095972444,2.08447721,85.749,85.711,1.08400057]
[1773095972645,2.08447721,85.747,85.72,11.2066975]
[1773095972849,2.08447721,85.747,85.712,1.08400057]
[1773095973150,2.08447721,85.747,85.72,11.2066975]
[1773095974342,3.69383402,85.753,85.712,1.08400057]
[1773095974343,2.18530041,85.745,85.712,1.08400057]
[1773095974545,2.18530041,85.745,85.71,11.2066975]
[1773095975548,2.18530041,85.743,85.71,4.18261444]
[1773095976052,2.18530041,85.743,85.711,1.11594598]
[1773095976258,2.18530041,85.743,85.72,4.18261444]
[1773095977055,11.66262362,85.744,85.73,4.18261444]
[1773095977255,11.66196694,85.749,85.731,1.13133126]
[1773095977750,11.66099165,85.756,85.731,1.13133126]
[1773095978052,11.66099165,85.756,85.74,4.18261444]
[1773095978351,7.16183328,85.757,85.75,4.18261444]
[1773095978352,6.02263802,85.757,85.75,4.18261444]
[1773095978532,2.38104706,85.782,85.75,4.18261444]
[1773095978736,2.38104706,85.781,85.75,4.18261444]
[1773095980153,2.38104706,85.779,85.75,4.18261444]
[1773095980562,11.65772907,85.78,85.72,4.18261444]
[1773095980563,11.65772907,85.78,85.76,4.18261444]
[1773095981146,2.38104706,85.779,85.76,4.18261444]
[1773095981675,2.38104706,85.779,85.76,4.17815739]
[1773095982041,2.38104706,85.777,85.75,4.17815739]
[1773095982241,2.38104706,85.777,85.76,4.17815739]
[1773095982939,11.65800088,85.778,85.76,4.17815739]
[1773095984452,2.38104706,85.782,85.76,4.17815739]
[1773095984968,2.38104706,85.782,85.75,4.17815739]
[1773095985852,2.38104706,85.782,85.76,4.17815739]
[1773095987762,11.65759317,85.781,85.76,4.17815739]
[1773095987966,2.38104706,85.78,85.76,4.17815739]
[1773095989564,2.38104706,85.78,85.75,4.17815739]
[1773095989748,11.65786497,85.779,85.75,4.17815739]
[1773095989950,2.38104706,85.778,85.75,4.17815739]
[1773095991743,2.38104706,85.787,85.761,0.10826395]
[1773095991950,11.65555503,85.796,85.761,0.10826395]
[1773095992266,2.38104706,85.795,85.77,4.17815739]
[1773095993541,11.65555503,85.796,85.77,4.17815739]
[1773095993542,11.65555503,85.796,85.771,0.12239744]
[1773095993746,11.65555503,85.796,85.78,4.17815739]
[1773095994264,14.03660209,85.796,85.78,4.17815739]
[1773095994466,2.38104706,85.795,85.78,4.17815739]
[1773095994973,11.65555503,85.796,85.79,4.17815739]
[1773095995166,11.65555503,85.796,85.78,4.17815739]
[1773095997161,11.65555503,85.796,85.78,4.32113411]
[1773095997465,11.65555503,85.796,85.79,4.17815739]
[1773095998470,11.65555503,85.796,85.781,0.14967507]
[1773095998653,11.65555503,85.796,85.78,4.17815739]
[1773095999060,2.45920335,85.795,85.761,11.66031179]
[1773095999260,2.45920335,85.795,85.77,4.17815739]
[1773095999563,2.45920335,85.795,85.761,11.66031179]
[1773095999768,2.45920335,85.795,85.77,4.17815739]
[1773096000853,2.45920335,85.795,85.727,1.16649363]
[1773096001157,2.45920335,85.779,85.74,4.17815739]
[1773096002973,2.45920335,85.769,85.73,4.17815739]
[1773096003377,2.45920335,85.769,85.74,4.17815739]
[1773096003758,2.45920335,85.769,85.73,4.2170044]
[1773096004155,2.45920335,85.769,85.74,4.17815739]
[1773096005056,2.45920335,85.767,85.74,15.84126686]
[1773096005484,2.45920335,85.767,85.741,0.05124945]
[1773096005782,11.65813679,85.777,85.75,4.17815739]
[1773096006081,2.45920335,85.794,85.77,4.17815739]
[1773096006274,2.45920335,85.794,85.78,4.17815739]
[1773096006663,11.65555503,85.796,85.78,4.17815739]
[1773096007284,11.65555503,85.796,85.79,4.17815739]
[1773096007588,0.2,85.82,85.79,11.17903551]
[1773096007589,11.65243127,85.819,85.79,11.17903551]
[1773096007762,11.65243127,85.819,85.8,11.17903551]
[1773096008880,11.65243127,85.819,85.81,11.17903551]
[1773096009484,0.2,85.82,85.81,11.17903551]
[1773096010285,11.85234105,85.82,85.81,11.17903551]
[1773096010789,11.64930919,85.842,85.81,11.17903551]
[1773096010991,2.49974422,85.841,85.81,11.17903551]
[1773096011689,2.49974422,85.839,85.81,11.17903551]
[1773096012188,2.49974422,85.839,85.82,11.17903551]
[1773096014284,2.49974422,85.837,85.82,11.17903551]
[1773096015891,2.49974422,85.837,85.81,11.17903551]
[1773096016696,2.49974422,85.829,85.79,11.17903551]
[1773096016995,2.49974422,85.827,85.79,11.17903551]
[1773096020800,2.49974422,85.825,85.79,11.22969762]
[1773096022898,40.78113347,85.824,85.79,11.22969762]
[1773096023097,2.49974422,85.823,85.79,11.22969762]
[1773096023683,2.49974422,85.823,85.79,11.17903551]
[1773096024079,2.49974422,85.821,85.79,11.17903551]
[1773096026287,2.49974422,85.819,85.79,11.17903551]
[1773096026485,2.49974422,85.819,85.782,0.06930264]
[1773096026894,2.49974422,85.819,85.783,11.65732138]
[1773096027091,2.49974422,85.819,85.79,11.17903551]
[1773096027696,2.49974422,85.819,85.79,4.17452255]
[1773096029697,2.49974422,85.817,85.79,4.17452255]
[1773096032490,40.78398471,85.818,85.79,4.17452255]
[1773096032491,2.49974422,85.815,85.79,4.17452255]
[1773096035716,11.65283863,85.816,85.79,4.17452255]
[1773096035717,2.49974422,85.813,85.79,4.17452255]
[1773096035894,11.65107364,85.829,85.801,0.12012927]
[1773096036092,11.65107364,85.829,85.81,4.17452255]
[1773096036897,11.65107364,85.829,85.807,0.12402621]
[1773096037098,11.65107364,85.829,85.81,4.17452255]
[1773096039191,11.65060531,85.833,85.82,4.17452255]
[1773096039397,2.49974422,85.842,85.82,4.17452255]
[1773096040127,2.49974422,85.842,85.82,4.31007162]
[1773096040915,2.49974422,85.842,85.813,0.13930356]
[1773096041118,11.64917349,85.843,85.821,0.13930356]
[1773096041393,14.14891771,85.843,85.821,0.13930356]
[1773096041617,11.64917349,85.843,85.821,0.13930356]
[1773096041821,2.49974422,85.842,85.82,4.17452255]
[1773096042614,2.49974422,85.842,85.815,0.14301555]
[1773096043196,2.49974422,85.842,85.82,4.17452255]
[1773096043605,11.6494449,85.841,85.82,4.1720814]
[1773096043814,2.49974422,85.84,85.82,4.1720814]
[1773096044821,2.49974422,85.84,85.82,4.32601504]
[1773096045006,11.6494449,85.841,85.821,0.15393364]
[1773096046202,11.6494449,85.841,85.83,4.1720814]
[1773096046599,11.6494449,85.841,85.8,4.1720814]
[1773096046600,7.01192132,85.844,85.831,0.16444512]
[1773096046819,11.64917349,85.843,85.83,4.1720814]
[1773096047015,11.64917349,85.843,85.82,4.1720814]
[1773096047320,7.01192132,85.844,85.83,4.1720814]
[1773096048215,7.01192132,85.844,85.831,11.65080215]
[1773096048806,7.01192132,85.844,85.83,4.1720814]
[1773096055633,7.01192132,85.844,85.83,4.2027199]
[1773096056732,6.97822366,85.844,85.832,0.03383336]
[1773096056940,2.59875615,85.866,85.831,11.65080215]
[1773096057230,11.64564627,85.869,85.86,4.1720814]
[1773096057533,2.59875615,85.868,85.84,4.1720814]
[1773096058212,2.59875615,85.868,85.85,4.1720814]
[1773096059918,2.59875615,85.866,85.85,4.1720814]
[1773096060312,0.2,85.87,85.813,0.28432314]
[1773096060507,2.59875615,85.869,85.814,1.16531102]
[1773096060733,2.59875615,85.868,85.82,29.13073875]
[1773096060934,2.59875615,85.868,85.84,4.1720814]
[1773096061232,2.59875615,85.868,85.85,4.1720814]
[1773096061654,0.2,85.87,85.86,4.1720814]
[1773096061815,39.94953242,85.891,85.87,4.1720814]
[1773096061816,2.59875615,85.887,85.87,4.1720814]
[1773096062728,2.59875615,85.887,85.861,11.64673134]
[1773096062729,7.14889667,85.891,85.88,4.1720814]
[1773096062929,2.59875615,85.919,85.88,8.3441628]
[1773096063235,2.59875615,85.919,85.89,4.1720814]
[1773096063611,2.59875615,85.918,85.89,4.1720814]
[1773096064026,2.59875615,85.916,85.89,4.1720814]
[1773096065030,2.59875615,85.916,85.88,0.02451745]
[1773096065031,2.59875615,85.916,85.9,4.1720814]
[1773096065409,2.59875615,85.916,85.891,0.02742109]
[1773096065837,2.59875615,85.916,85.9,4.1720814]
[1773096066534,2.59875615,85.929,85.91,4.1720814]
[1773096066716,0.2,85.93,85.91,4.1720814]
[1773096066916,11.83744318,85.93,85.91,4.1720814]
[1773096067324,0.2,85.93,85.91,4.1720814]
[1773096068111,11.83739106,85.93,85.91,4.1720814]
[1773096068717,11.83739106,85.93,85.91,15.81216184]
[1773096069118,11.83739106,85.93,85.91,4.1720814]
[1773096069513,2.59875615,85.929,85.91,4.1720814]
[1773096069715,2.59875615,85.929,85.89,4.1720814]
[1773096069943,45.10292061,85.93,85.874,0.04142842]
[1773096069944,2.59875615,85.919,85.88,4.1720814]
[1773096070242,2.59875615,85.917,85.88,15.81623158]
[1773096071216,2.59875615,85.917,85.88,11.64415018]
[1773096071517,2.59875615,85.917,85.89,4.1720814]
[1773096072415,4.3720814,85.93,85.88,11.64415018]
[1773096072416,2.59875615,85.922,85.9,4.1720814]